[Event "*** Titled Tuesday Blitz"]
[Site "Chess.com"]
[Date "2020.02.04"]
[Round "4"]
[White "wolfje95"]
[Black "IMRosen"]
[Result "0-1"]
[WhiteElo "2373"]
[BlackElo "2546"]
[TimeControl "180+2"]
[EndTime "13:49:48 PST"]
[Termination "IMRosen won by checkmate"]

1. c4 {[%clk 0:03:01.9]} 1... e6 {[%clk 0:02:59.3]} 2. Nc3 {[%clk 0:03:02.2]}
2... d5 {[%clk 0:02:59.5]} 3. d4 {[%clk 0:03:01.2]} 3... Nf6 {[%clk 0:02:56.1]}
4. cxd5 {[%clk 0:03:02]} 4... exd5 {[%clk 0:02:58]} 5. Bg5 {[%clk 0:03:03]} 5...
c6 {[%clk 0:02:57.7]} 6. e3 {[%clk 0:03:04.4]} 6... Bd6 {[%clk 0:02:52.6]} 7.
Bd3 {[%clk 0:03:05]} 7... h6 {[%clk 0:02:49.3]} 8. Bh4 {[%clk 0:03:04.8]} 8...
O-O {[%clk 0:02:49.8]} 9. Nge2 {[%clk 0:03:04.6]} 9... Re8 {[%clk 0:02:50]} 10.
Qc2 {[%clk 0:02:58.8]} 10... a5 {[%clk 0:02:47.9]} 11. O-O-O {[%clk 0:02:56.4]}
11... Na6 {[%clk 0:02:48]} 12. Bh7+ {[%clk 0:02:33.5]} 12... Kh8 {[%clk
0:02:47.1]} 13. Bf5 {[%clk 0:02:35]} 13... Nb4 {[%clk 0:02:47.1]} 14. Qb1 {[%clk
0:02:36.1]} 14... a4 {[%clk 0:02:16.2]} 15. Bxc8 {[%clk 0:02:32.6]} 15... Rxc8
{[%clk 0:02:17]} 16. Qf5 {[%clk 0:02:33.8]} 16... Be7 {[%clk 0:02:16.7]} 17. Kb1
{[%clk 0:02:28]} 17... a3 {[%clk 0:02:10.1]} 18. b3 {[%clk 0:02:26.8]} 18... Ne4
{[%clk 0:02:07.8]} 19. Nxe4 {[%clk 0:02:14.4]} 19... dxe4 {[%clk 0:02:06.3]} 20.
Bg3 {[%clk 0:01:58.7]} 20... Nd5 {[%clk 0:02:04.6]} 21. Qxe4 {[%clk 0:01:51.3]}
21... Qa5 {[%clk 0:01:49.5]} 22. Qc2 {[%clk 0:01:48.6]} 22... c5 {[%clk
0:01:44.8]} 23. Qd2 {[%clk 0:01:45.5]} 23... Nb4 {[%clk 0:01:35.7]} 24. d5
{[%clk 0:01:42.5]} 24... Bf6 {[%clk 0:01:37]} 25. d6 {[%clk 0:01:29.6]} 25...
Red8 {[%clk 0:01:29.8]} 26. Nc3 {[%clk 0:01:21.1]} 26... c4 {[%clk 0:01:27.5]}
27. bxc4 {[%clk 0:01:10.7]} 27... Rxc4 {[%clk 0:01:28.1]} 28. Nd5 {[%clk
0:01:05.9]} 28... Qb5 {[%clk 0:00:38.2]} 29. Nc7 {[%clk 0:00:25.6]} 29... Rxc7
{[%clk 0:00:39.1]} 30. dxc7 {[%clk 0:00:24.3]} 30... Nd3+ {[%clk 0:00:40.5]} 31.
Kc2 {[%clk 0:00:20.8]} 31... Qb2# {[%clk 0:00:41.2]} 0-1

[Event "*** Titled Tuesday Blitz"]
[Site "Chess.com"]
[Date "2020.02.04"]
[Round "4"]
[White "MishkaFighter"]
[Black "chessdjw"]
[Result "1/2-1/2"]
[WhiteElo "2448"]
[BlackElo "2586"]
[TimeControl "180+2"]
[EndTime "13:49:49 PST"]
[Termination "Game drawn by repetition"]

1. d4 {[%clk 0:03:01.9]} 1... Nf6 {[%clk 0:02:59.9]} 2. c4 {[%clk 0:03:02.9]}
2... e6 {[%clk 0:02:59]} 3. Nf3 {[%clk 0:03:03.3]} 3... c5 {[%clk 0:02:59.8]} 4.
d5 {[%clk 0:03:02.9]} 4... b5 {[%clk 0:03:01.5]} 5. dxe6 {[%clk 0:03:03.1]} 5...
fxe6 {[%clk 0:03:01.9]} 6. cxb5 {[%clk 0:03:04.6]} 6... a6 {[%clk 0:03:03.5]} 7.
bxa6 {[%clk 0:03:05.2]} 7... Bxa6 {[%clk 0:03:04.3]} 8. g3 {[%clk 0:03:06.7]}
8... d5 {[%clk 0:03:04.1]} 9. Bg2 {[%clk 0:03:08.2]} 9... Bd6 {[%clk 0:03:05.7]}
10. O-O {[%clk 0:03:09.7]} 10... Kf8 {[%clk 0:03:07.2]} 11. Nc3 {[%clk
0:03:10.3]} 11... Nc6 {[%clk 0:03:07.3]} 12. Re1 {[%clk 0:03:08]} 12... d4
{[%clk 0:03:05.5]} 13. Ng5 {[%clk 0:03:06.4]} 13... Qd7 {[%clk 0:02:56.5]} 14.
Nce4 {[%clk 0:03:05.8]} 14... h6 {[%clk 0:02:38]} 15. Nxf6 {[%clk 0:02:40.5]}
15... gxf6 {[%clk 0:02:35.8]} 16. Nxe6+ {[%clk 0:02:41.1]} 16... Qxe6 {[%clk
0:02:37.1]} 17. Bxc6 {[%clk 0:02:42.7]} 17... Rc8 {[%clk 0:02:29.8]} 18. Bg2
{[%clk 0:02:43.8]} 18... h5 {[%clk 0:02:27.3]} 19. Qa4 {[%clk 0:02:44.8]} 19...
Bxe2 {[%clk 0:02:05]} 20. Qc2 {[%clk 0:01:53.7]} 20... Re8 {[%clk 0:01:54.5]}
21. Bf3 {[%clk 0:00:37]} 21... Bxf3 {[%clk 0:01:47.1]} 22. Rxe6 {[%clk 0:00:37]}
22... Rxe6 {[%clk 0:01:49]} 23. Bf4 {[%clk 0:00:22.9]} 23... Bxf4 {[%clk
0:00:39]} 24. Qf5 {[%clk 0:00:22.7]} 24... Re4 {[%clk 0:00:40.6]} 25. Qxf6+
{[%clk 0:00:19.6]} 25... Kg8 {[%clk 0:00:42]} 26. Qg6+ {[%clk 0:00:20.5]} 26...
Kf8 {[%clk 0:00:43.5]} 27. Qf6+ {[%clk 0:00:21.6]} 27... Kg8 {[%clk 0:00:45]}
28. Qg6+ {[%clk 0:00:07.3]} 28... Kf8 {[%clk 0:00:46.1]} 29. Qf6+ {[%clk
0:00:06.6]} 1/2-1/2

[Event "*** Titled Tuesday Blitz"]
[Site "Chess.com"]
[Date "2020.02.04"]
[Round "4"]
[White "Kira170"]
[Black "Zkid"]
[Result "0-1"]
[WhiteElo "2534"]
[BlackElo "2838"]
[TimeControl "180+2"]
[EndTime "13:49:57 PST"]
[Termination "Zkid won by resignation"]

1. d4 {[%clk 0:03:01.9]} 1... d5 {[%clk 0:03:00.8]} 2. c4 {[%clk 0:03:00.7]}
2... dxc4 {[%clk 0:03:02.7]} 3. Nf3 {[%clk 0:03:01.2]} 3... Nf6 {[%clk
0:03:03.9]} 4. Qa4+ {[%clk 0:03:02.2]} 4... c6 {[%clk 0:03:04.7]} 5. Qxc4 {[%clk
0:03:03.6]} 5... Bf5 {[%clk 0:03:05.9]} 6. g3 {[%clk 0:03:04.9]} 6... e6 {[%clk
0:03:04.8]} 7. Bg2 {[%clk 0:03:06]} 7... Be7 {[%clk 0:03:02.4]} 8. O-O {[%clk
0:03:06.8]} 8... O-O {[%clk 0:03:03.7]} 9. Bf4 {[%clk 0:03:00.9]} 9... Nbd7
{[%clk 0:03:02.4]} 10. Qc1 {[%clk 0:02:59]} 10... Rc8 {[%clk 0:02:59.2]} 11. Nc3
{[%clk 0:02:59.6]} 11... c5 {[%clk 0:03:00.1]} 12. Rd1 {[%clk 0:03:00.6]} 12...
cxd4 {[%clk 0:02:56.1]} 13. Nxd4 {[%clk 0:03:02.5]} 13... Be4 {[%clk 0:02:51.9]}
14. Nf3 {[%clk 0:02:01.1]} 14... Qb6 {[%clk 0:02:38.8]} 15. Be3 {[%clk
0:01:58.9]} 15... Qa6 {[%clk 0:02:33.2]} 16. Qd2 {[%clk 0:01:48.9]} 16... Bc6
{[%clk 0:02:32.5]} 17. Bd4 {[%clk 0:01:45.2]} 17... Nc5 {[%clk 0:02:29.3]} 18.
h3 {[%clk 0:01:42]} 18... Rfd8 {[%clk 0:02:26.5]} 19. Qe3 {[%clk 0:01:42.6]}
19... b6 {[%clk 0:02:13.6]} 20. b4 {[%clk 0:01:30.7]} 20... Na4 {[%clk
0:02:09.8]} 21. Nxa4 {[%clk 0:01:07]} 21... Bxa4 {[%clk 0:02:09.5]} 22. a3
{[%clk 0:01:08.4]} 22... Bxd1 {[%clk 0:02:09.6]} 23. Rxd1 {[%clk 0:01:10]} 23...
Rc2 {[%clk 0:02:06]} 24. Bf1 {[%clk 0:01:08.3]} 24... Ra2 {[%clk 0:02:00.1]} 25.
Rd3 {[%clk 0:01:09.4]} 25... h6 {[%clk 0:01:53.5]} 26. Ne5 {[%clk 0:01:10]}
26... Nd5 {[%clk 0:01:51.6]} 27. Qf3 {[%clk 0:01:10.5]} 27... Bf6 {[%clk
0:01:48.8]} 28. Nc6 {[%clk 0:01:06.7]} 28... Re8 {[%clk 0:01:30.8]} 29. Bxf6
{[%clk 0:01:03.2]} 29... Nxf6 {[%clk 0:01:31.3]} 30. Kh2 {[%clk 0:00:44.1]}
30... Ra1 {[%clk 0:01:22.9]} 31. Bg2 {[%clk 0:00:44.1]} 31... Qa4 {[%clk
0:01:14.2]} 32. Qe3 {[%clk 0:00:33.8]} 32... Qc2 {[%clk 0:01:09.8]} 33. g4
{[%clk 0:00:26]} 33... Qb1 {[%clk 0:01:03.6]} 34. Qe5 {[%clk 0:00:17.3]} 34...
Qg1+ {[%clk 0:01:01.6]} 35. Kg3 {[%clk 0:00:18.5]} 35... Rf1 {[%clk 0:01:02.8]}
36. Qd4 {[%clk 0:00:16.7]} 36... Rxf2 {[%clk 0:01:02.6]} 0-1

[Event "*** Titled Tuesday Blitz"]
[Site "Chess.com"]
[Date "2020.02.04"]
[Round "4"]
[White "KerryStead"]
[Black "2165149677570"]
[Result "0-1"]
[WhiteElo "2079"]
[BlackElo "2310"]
[TimeControl "180+2"]
[EndTime "13:50:01 PST"]
[Termination "2165149677570 won by checkmate"]

1. d4 {[%clk 0:03:01.9]} 1... Nf6 {[%clk 0:02:51.9]} 2. f3 {[%clk 0:03:01.5]}
2... d5 {[%clk 0:02:52.2]} 3. e4 {[%clk 0:02:58.6]} 3... dxe4 {[%clk 0:02:53.3]}
4. Nc3 {[%clk 0:02:57.6]} 4... c5 {[%clk 0:02:53.9]} 5. Bb5+ {[%clk 0:02:53.7]}
5... Bd7 {[%clk 0:02:54.7]} 6. dxc5 {[%clk 0:02:54]} 6... Qa5 {[%clk 0:02:41.9]}
7. Bxd7+ {[%clk 0:02:43.9]} 7... Nbxd7 {[%clk 0:02:43.8]} 8. a3 {[%clk
0:02:43.3]} 8... Qxc5 {[%clk 0:02:14.3]} 9. fxe4 {[%clk 0:02:40.5]} 9... e6
{[%clk 0:01:03.9]} 10. Nf3 {[%clk 0:02:39]} 10... Bd6 {[%clk 0:01:01.2]} 11. Qe2
{[%clk 0:02:37.6]} 11... Qb6 {[%clk 0:00:56]} 12. Nd1 {[%clk 0:02:23.8]} 12...
Ng4 {[%clk 0:00:40.5]} 13. c3 {[%clk 0:02:00.2]} 13... O-O {[%clk 0:00:27.4]}
14. Ne3 {[%clk 0:01:53.6]} 14... Nxe3 {[%clk 0:00:12.6]} 15. Bxe3 {[%clk
0:01:53.6]} 15... Bc5 {[%clk 0:00:14.1]} 16. Bxc5 {[%clk 0:01:46.2]} 16... Nxc5
{[%clk 0:00:16]} 17. O-O-O {[%clk 0:01:26.8]} 17... Rfd8 {[%clk 0:00:11]} 18.
Rxd8+ {[%clk 0:01:25.4]} 18... Rxd8 {[%clk 0:00:12.9]} 19. Rd1 {[%clk
0:01:25.8]} 19... Rxd1+ {[%clk 0:00:11.5]} 20. Qxd1 {[%clk 0:01:25.8]} 20...
Nxe4 {[%clk 0:00:12.2]} 21. Qd7 {[%clk 0:01:13.8]} 21... h6 {[%clk 0:00:07.3]}
22. Qe8+ {[%clk 0:01:11]} 22... Kh7 {[%clk 0:00:08.3]} 23. Qxf7 {[%clk
0:01:12.1]} 23... Qe3+ {[%clk 0:00:09.8]} 24. Kc2 {[%clk 0:01:12.7]} 24... Qe2+
{[%clk 0:00:08.9]} 25. Kb3 {[%clk 0:01:12.7]} 25... Nc5+ {[%clk 0:00:09.1]} 26.
Kb4 {[%clk 0:01:10.8]} 26... b6 {[%clk 0:00:08.3]} 27. a4 {[%clk 0:00:45.5]}
27... Qxb2+ {[%clk 0:00:03.4]} 28. Kc4 {[%clk 0:00:44.9]} 28... Qe2+ {[%clk
0:00:04]} 29. Kd4 {[%clk 0:00:36.9]} 29... Qe4# {[%clk 0:00:04.5]} 0-1

[Event "*** Titled Tuesday Blitz"]
[Site "Chess.com"]
[Date "2020.02.04"]
[Round "4"]
[White "MateSchmate"]
[Black "INLOVEWITHF"]
[Result "0-1"]
[WhiteElo "2486"]
[BlackElo "2341"]
[TimeControl "180+2"]
[EndTime "13:50:04 PST"]
[Termination "INLOVEWITHF won by checkmate"]

1. e4 {[%clk 0:03:01.9]} 1... e5 {[%clk 0:03:00.1]} 2. Nf3 {[%clk 0:03:03.2]}
2... Nc6 {[%clk 0:03:00.2]} 3. d4 {[%clk 0:03:04.7]} 3... exd4 {[%clk
0:03:00.7]} 4. Nxd4 {[%clk 0:03:06.6]} 4... Nf6 {[%clk 0:03:00.3]} 5. Nxc6
{[%clk 0:03:07.7]} 5... bxc6 {[%clk 0:02:59.8]} 6. e5 {[%clk 0:03:09]} 6... Qe7
{[%clk 0:03:00.3]} 7. Qe2 {[%clk 0:03:10.2]} 7... Nd5 {[%clk 0:03:01.2]} 8. c4
{[%clk 0:03:11.2]} 8... Ba6 {[%clk 0:03:02.1]} 9. Nd2 {[%clk 0:03:12.6]} 9... g6
{[%clk 0:03:00.7]} 10. Nf3 {[%clk 0:03:13.4]} 10... Qb4+ {[%clk 0:03:01.9]} 11.
Qd2 {[%clk 0:03:12.3]} 11... Bxc4 {[%clk 0:02:23.7]} 12. a3 {[%clk 0:03:12.5]}
12... Qxd2+ {[%clk 0:02:16.6]} 13. Bxd2 {[%clk 0:03:12.6]} 13... Bxf1 {[%clk
0:02:17.5]} 14. Rxf1 {[%clk 0:03:11.7]} 14... Bg7 {[%clk 0:02:18.2]} 15. O-O-O
{[%clk 0:03:13]} 15... O-O {[%clk 0:02:05]} 16. Rfe1 {[%clk 0:03:13.3]} 16...
Rfe8 {[%clk 0:02:05.4]} 17. Bc3 {[%clk 0:03:14.5]} 17... Rab8 {[%clk 0:01:58.8]}
18. Kc2 {[%clk 0:03:15.6]} 18... Rb5 {[%clk 0:01:59.3]} 19. Nd4 {[%clk
0:03:15.2]} 19... Nxc3 {[%clk 0:01:49.1]} 20. bxc3 {[%clk 0:03:07.1]} 20...
Rbxe5 {[%clk 0:01:49.7]} 21. Rxe5 {[%clk 0:03:04.9]} 21... Bxe5 {[%clk
0:01:51.6]} 22. Re1 {[%clk 0:03:04]} 22... Kf8 {[%clk 0:01:48.6]} 23. Nf3 {[%clk
0:03:03.6]} 23... Bf6 {[%clk 0:01:45.3]} 24. Rb1 {[%clk 0:03:00.9]} 24... Re2+
{[%clk 0:01:39.2]} 25. Kd3 {[%clk 0:03:00.5]} 25... Rxf2 {[%clk 0:01:40.3]} 26.
Rb7 {[%clk 0:03:02.1]} 26... Rxg2 {[%clk 0:01:35.2]} 27. Rxc7 {[%clk 0:03:03.3]}
27... Ke7 {[%clk 0:01:36.6]} 28. Rxa7 {[%clk 0:03:04.2]} 28... g5 {[%clk
0:01:16.6]} 29. a4 {[%clk 0:03:01.4]} 29... g4 {[%clk 0:01:17.5]} 30. Ne1 {[%clk
0:03:01]} 30... Rxh2 {[%clk 0:01:17.8]} 31. a5 {[%clk 0:02:56.5]} 31... Bh4
{[%clk 0:01:14.9]} 32. Nc2 {[%clk 0:02:52.6]} 32... Bf2 {[%clk 0:01:10.8]} 33.
Ra8 {[%clk 0:02:43.6]} 33... g3 {[%clk 0:01:10.8]} 34. Ne3 {[%clk 0:02:35.8]}
34... g2 {[%clk 0:01:05]} 35. Nxg2 {[%clk 0:02:25.6]} 35... Rxg2 {[%clk
0:01:06.9]} 36. a6 {[%clk 0:02:25.5]} 36... Bc5 {[%clk 0:01:01]} 37. Kc4 {[%clk
0:02:26]} 37... Kd6 {[%clk 0:01:00.9]} 38. Rh8 {[%clk 0:02:26.3]} 38... Ra2
{[%clk 0:01:00.1]} 39. Rxh7 {[%clk 0:02:26.8]} 39... Ra4+ {[%clk 0:01:00.6]} 40.
Kb3 {[%clk 0:02:27.5]} 40... Rxa6 {[%clk 0:01:02.1]} 41. Rxf7 {[%clk 0:02:29.4]}
41... Ke6 {[%clk 0:01:00.1]} 42. Rf1 {[%clk 0:02:30.4]} 42... d5 {[%clk
0:01:01]} 43. Kc2 {[%clk 0:02:31.6]} 43... Ra2+ {[%clk 0:01:01.3]} 44. Kd3
{[%clk 0:02:33.5]} 44... Ra3 {[%clk 0:01:02.4]} 45. Re1+ {[%clk 0:02:34]} 45...
Kd6 {[%clk 0:01:03.2]} 46. Kc2 {[%clk 0:02:35.9]} 46... d4 {[%clk 0:01:01.1]}
47. cxd4 {[%clk 0:02:37.8]} 47... Bxd4 {[%clk 0:01:02.7]} 48. Re8 {[%clk
0:02:39.7]} 48... c5 {[%clk 0:01:03.8]} 49. Kd2 {[%clk 0:02:40.5]} 49... Kd5
{[%clk 0:01:03.4]} 50. Rd8+ {[%clk 0:02:41.7]} 50... Kc4 {[%clk 0:01:05]} 51.
Kc2 {[%clk 0:02:43.4]} 51... Ra2+ {[%clk 0:01:06.4]} 52. Kb1 {[%clk 0:02:45.3]}
52... Rg2 {[%clk 0:01:06.8]} 53. Ra8 {[%clk 0:02:45.4]} 53... Kc3 {[%clk
0:01:04.7]} 54. Ra3+ {[%clk 0:02:45.9]} 54... Kb4 {[%clk 0:01:05.2]} 55. Rf3
{[%clk 0:02:45.6]} 55... c4 {[%clk 0:01:06.1]} 56. Rf1 {[%clk 0:02:45.9]} 56...
Kb3 {[%clk 0:01:06.7]} 57. Kc1 {[%clk 0:02:46.8]} 57... Ra2 {[%clk 0:01:06.6]}
58. Rf3+ {[%clk 0:02:47.9]} 58... Bc3 {[%clk 0:01:07]} 59. Kd1 {[%clk
0:02:48.6]} 59... Ra1+ {[%clk 0:01:06]} 60. Ke2 {[%clk 0:02:49.8]} 60... Re1+
{[%clk 0:01:07.3]} 61. Kf2 {[%clk 0:02:51.2]} 61... Re8 {[%clk 0:01:08.2]} 62.
Rf7 {[%clk 0:02:51.8]} 62... Bd4+ {[%clk 0:01:07.1]} 63. Kf1 {[%clk 0:02:52.7]}
63... Kc2 {[%clk 0:01:07.8]} 64. Rb7 {[%clk 0:02:54.6]} 64... c3 {[%clk
0:01:08.7]} 65. Rc7 {[%clk 0:02:56.5]} 65... Kd3 {[%clk 0:01:08.8]} 66. Rd7
{[%clk 0:02:58.4]} 66... c2 {[%clk 0:01:10.2]} 67. Rc7 {[%clk 0:03:00.3]} 67...
Bc3 {[%clk 0:01:11]} 68. Rd7+ {[%clk 0:03:01.9]} 68... Kc4 {[%clk 0:01:10.7]}
69. Rc7+ {[%clk 0:03:03]} 69... Kb3 {[%clk 0:01:12.3]} 70. Rb7+ {[%clk
0:03:04.3]} 70... Ka2 {[%clk 0:01:13.4]} 71. Ra7+ {[%clk 0:03:05.6]} 71... Kb1
{[%clk 0:01:14.5]} 72. Rb7+ {[%clk 0:03:07.5]} 72... Bb2 {[%clk 0:01:15.8]} 73.
Rc7 {[%clk 0:03:09.2]} 73... c1=Q+ {[%clk 0:01:16.4]} 74. Rxc1+ {[%clk
0:03:11.1]} 74... Bxc1 {[%clk 0:01:17.6]} 75. Kf2 {[%clk 0:03:13]} 75... Kc2
{[%clk 0:01:18.9]} 76. Kf3 {[%clk 0:03:14.9]} 76... Kd3 {[%clk 0:01:20.1]} 77.
Kg4 {[%clk 0:03:16.8]} 77... Rf8 {[%clk 0:01:20.3]} 78. Kh4 {[%clk 0:03:17.7]}
78... Ke4 {[%clk 0:01:21.6]} 79. Kh5 {[%clk 0:03:19.6]} 79... Rg8 {[%clk
0:01:22.6]} 80. Kh4 {[%clk 0:03:20.1]} 80... Kf4 {[%clk 0:01:23.2]} 81. Kh5
{[%clk 0:03:22]} 81... Kf3 {[%clk 0:01:19.7]} 82. Kh4 {[%clk 0:03:22.6]} 82...
Rh8# {[%clk 0:01:21.2]} 0-1

[Event "*** Titled Tuesday Blitz"]
[Site "Chess.com"]
[Date "2020.02.04"]
[Round "4"]
[White "joshdaruca"]
[Black "GoingKronos"]
[Result "1-0"]
[WhiteElo "2701"]
[BlackElo "2467"]
[TimeControl "180+2"]
[EndTime "13:50:12 PST"]
[Termination "joshdaruca won by checkmate"]

1. e4 {[%clk 0:02:54.8]} 1... e5 {[%clk 0:02:59.3]} 2. Nf3 {[%clk 0:02:37.6]}
2... d6 {[%clk 0:03:00.1]} 3. d4 {[%clk 0:02:38]} 3... exd4 {[%clk 0:03:01]} 4.
Nxd4 {[%clk 0:02:39.6]} 4... Nf6 {[%clk 0:03:02.2]} 5. Nc3 {[%clk 0:02:40.6]}
5... Be7 {[%clk 0:03:03.5]} 6. Bf4 {[%clk 0:02:40.9]} 6... O-O {[%clk
0:03:04.1]} 7. Qd2 {[%clk 0:02:42.4]} 7... Nc6 {[%clk 0:03:03.8]} 8. Nxc6 {[%clk
0:02:42.7]} 8... bxc6 {[%clk 0:03:04.4]} 9. O-O-O {[%clk 0:02:30.1]} 9... Be6
{[%clk 0:02:53.2]} 10. f3 {[%clk 0:02:28.2]} 10... Rb8 {[%clk 0:02:45.1]} 11. g4
{[%clk 0:02:27.3]} 11... Nd7 {[%clk 0:02:25]} 12. h4 {[%clk 0:02:27.4]} 12...
Ne5 {[%clk 0:02:13.6]} 13. Be2 {[%clk 0:01:51.6]} 13... Qc8 {[%clk 0:02:02.5]}
14. b3 {[%clk 0:01:47.6]} 14... Qb7 {[%clk 0:01:46.3]} 15. h5 {[%clk 0:01:41.7]}
15... Qb4 {[%clk 0:01:39.8]} 16. Nb1 {[%clk 0:01:38.2]} 16... Qb6 {[%clk
0:01:33.6]} 17. h6 {[%clk 0:01:35.5]} 17... g6 {[%clk 0:01:34.9]} 18. Be3 {[%clk
0:01:35.3]} 18... c5 {[%clk 0:01:35.3]} 19. Nc3 {[%clk 0:01:33.3]} 19... Bf6
{[%clk 0:01:15.3]} 20. g5 {[%clk 0:01:31.2]} 20... Bh8 {[%clk 0:01:16]} 21. Nd5
{[%clk 0:01:25.7]} 21... Bxd5 {[%clk 0:01:16.4]} 22. exd5 {[%clk 0:01:26.6]}
22... Rfe8 {[%clk 0:01:08.6]} 23. f4 {[%clk 0:01:25.7]} 23... Nd7 {[%clk
0:01:07.9]} 24. Bg4 {[%clk 0:01:26.2]} 24... Re7 {[%clk 0:01:03.4]} 25. Rhe1
{[%clk 0:01:23.6]} 25... Rbe8 {[%clk 0:00:56.7]} 26. Bxd7 {[%clk 0:01:21.7]}
26... Rxd7 {[%clk 0:00:55]} 27. Bxc5 {[%clk 0:01:23.2]} 27... Qb8 {[%clk
0:00:52.3]} 28. Bd4 {[%clk 0:01:18.1]} 28... f6 {[%clk 0:00:31]} 29. f5 {[%clk
0:01:12.2]} 29... Rde7 {[%clk 0:00:28.2]} 30. Rxe7 {[%clk 0:01:10]} 30... Rxe7
{[%clk 0:00:29.5]} 31. gxf6 {[%clk 0:01:11]} 31... Re4 {[%clk 0:00:26.7]} 32.
fxg6 {[%clk 0:01:11.1]} 32... hxg6 {[%clk 0:00:26.6]} 33. f7+ {[%clk 0:01:10.3]}
33... Kxf7 {[%clk 0:00:26.4]} 34. Qf2+ {[%clk 0:00:56.6]} 34... Kg8 {[%clk
0:00:25.1]} 35. Bxh8 {[%clk 0:00:56.7]} 35... Kxh8 {[%clk 0:00:02.6]} 36. Qf6+
{[%clk 0:00:57.2]} 36... Kh7 {[%clk 0:00:03.8]} 37. Qg7# {[%clk 0:00:59.1]} 1-0

[Event "*** Titled Tuesday Blitz"]
[Site "Chess.com"]
[Date "2020.02.04"]
[Round "4"]
[White "hansen"]
[Black "dmosesov"]
[Result "1-0"]
[WhiteElo "2890"]
[BlackElo "2588"]
[TimeControl "180+2"]
[EndTime "13:50:27 PST"]
[Termination "hansen won by resignation"]

1. e4 {[%clk 0:03:01.9]} 1... c5 {[%clk 0:02:54.3]} 2. d4 {[%clk 0:02:55]} 2...
cxd4 {[%clk 0:02:55.4]} 3. c3 {[%clk 0:02:55.5]} 3... dxc3 {[%clk 0:02:56.7]} 4.
Nxc3 {[%clk 0:02:55.5]} 4... Nc6 {[%clk 0:02:58.3]} 5. Nf3 {[%clk 0:02:56.3]}
5... d6 {[%clk 0:02:59.7]} 6. Bc4 {[%clk 0:02:56.9]} 6... e6 {[%clk 0:03:01.2]}
7. O-O {[%clk 0:02:57.8]} 7... Nf6 {[%clk 0:03:02.6]} 8. Qe2 {[%clk 0:02:57.7]}
8... Be7 {[%clk 0:03:03.9]} 9. Rd1 {[%clk 0:02:59.1]} 9... e5 {[%clk 0:03:05.2]}
10. h3 {[%clk 0:02:55.8]} 10... O-O {[%clk 0:03:05.8]} 11. Bg5 {[%clk
0:02:56.7]} 11... Be6 {[%clk 0:03:07]} 12. Rac1 {[%clk 0:02:47.8]} 12... Rc8
{[%clk 0:02:57.4]} 13. b3 {[%clk 0:02:26]} 13... a6 {[%clk 0:02:47.7]} 14. Be3
{[%clk 0:02:04.8]} 14... b5 {[%clk 0:02:42.4]} 15. Bxe6 {[%clk 0:01:59.4]} 15...
fxe6 {[%clk 0:02:44.3]} 16. a4 {[%clk 0:02:01.3]} 16... b4 {[%clk 0:02:41.7]}
17. Nb1 {[%clk 0:02:02.7]} 17... Nxe4 {[%clk 0:02:30.4]} 18. Qxa6 {[%clk
0:02:03.4]} 18... Qd7 {[%clk 0:02:25.4]} 19. Rc4 {[%clk 0:01:38]} 19... Nf6
{[%clk 0:02:17.4]} 20. Rdc1 {[%clk 0:01:35.8]} 20... Nd5 {[%clk 0:01:23.5]} 21.
Rxc6 {[%clk 0:01:25]} 21... Ra8 {[%clk 0:01:24.6]} 22. Qc4 {[%clk 0:00:54.4]}
22... Qe8 {[%clk 0:01:19.6]} 23. Nbd2 {[%clk 0:00:53]} 23... Kh8 {[%clk
0:01:00.9]} 24. Kh1 {[%clk 0:00:32]} 24... Qg6 {[%clk 0:00:49]} 25. Qg4 {[%clk
0:00:32.1]} 25... Qd3 {[%clk 0:00:50]} 26. Qe4 {[%clk 0:00:25.4]} 26... Qxe4
{[%clk 0:00:24.8]} 27. Nxe4 {[%clk 0:00:27.3]} 27... Rad8 {[%clk 0:00:25.9]} 28.
Bg5 {[%clk 0:00:25.3]} 28... Bxg5 {[%clk 0:00:14.5]} 29. Nfxg5 {[%clk
0:00:26.1]} 29... Nf4 {[%clk 0:00:15.3]} 30. Rxd6 {[%clk 0:00:24.3]} 30... Rc8
{[%clk 0:00:11.7]} 31. Rxc8 {[%clk 0:00:22.5]} 31... Rxc8 {[%clk 0:00:13.5]} 32.
Nxe6 {[%clk 0:00:23.2]} 32... Ne2 {[%clk 0:00:12.9]} 33. Rd8+ {[%clk 0:00:22.7]}
1-0

[Event "*** Titled Tuesday Blitz"]
[Site "Chess.com"]
[Date "2020.02.04"]
[Round "4"]
[White "lilleper1"]
[Black "catalin009"]
[Result "1-0"]
[WhiteElo "2688"]
[BlackElo "2451"]
[TimeControl "180+2"]
[EndTime "13:50:29 PST"]
[Termination "lilleper1 won by resignation"]

1. d4 {[%clk 0:03:01.9]} 1... Nf6 {[%clk 0:03:00.3]} 2. Nf3 {[%clk 0:03:02.7]}
2... e6 {[%clk 0:03:00.6]} 3. c4 {[%clk 0:03:03.5]} 3... b6 {[%clk 0:03:01.1]}
4. g3 {[%clk 0:03:01.8]} 4... Ba6 {[%clk 0:03:01.5]} 5. Qa4 {[%clk 0:03:00.8]}
5... Bb7 {[%clk 0:02:58.4]} 6. Bg2 {[%clk 0:03:01.2]} 6... c5 {[%clk 0:02:58.9]}
7. dxc5 {[%clk 0:03:02.2]} 7... bxc5 {[%clk 0:02:59.9]} 8. O-O {[%clk 0:03:03]}
8... Nc6 {[%clk 0:03:00.3]} 9. Nc3 {[%clk 0:03:03.9]} 9... Qb6 {[%clk
0:02:56.6]} 10. Rd1 {[%clk 0:03:03.6]} 10... Be7 {[%clk 0:02:46.5]} 11. Bf4
{[%clk 0:03:02.4]} 11... Qxb2 {[%clk 0:02:35.3]} 12. Nb5 {[%clk 0:02:31.5]}
12... O-O {[%clk 0:02:16.9]} 13. Rab1 {[%clk 0:02:31.2]} 13... Qxe2 {[%clk
0:02:12.4]} 14. Nc3 {[%clk 0:02:31.8]} 14... Qxd1+ {[%clk 0:02:01.9]} 15. Qxd1
{[%clk 0:02:31.3]} 15... Ba6 {[%clk 0:02:01.2]} 16. Nb5 {[%clk 0:02:30.2]} 16...
d5 {[%clk 0:01:52.3]} 17. Nc7 {[%clk 0:02:11.5]} 17... Bxc4 {[%clk 0:01:54.2]}
18. Nxa8 {[%clk 0:02:12.1]} 18... Rxa8 {[%clk 0:01:55.6]} 19. Qa4 {[%clk
0:02:09.9]} 19... Nb4 {[%clk 0:01:53.1]} 20. Ne5 {[%clk 0:02:09.4]} 20... Bxa2
{[%clk 0:01:48.9]} 21. Rxb4 {[%clk 0:02:08.8]} 21... cxb4 {[%clk 0:01:48.6]} 22.
Qxa2 {[%clk 0:02:09.7]} 22... a5 {[%clk 0:01:48.4]} 23. Nc6 {[%clk 0:02:09.7]}
23... Bc5 {[%clk 0:01:49.1]} 24. Qa4 {[%clk 0:02:04.4]} 24... Nd7 {[%clk
0:01:48.1]} 25. Bc7 {[%clk 0:02:03.7]} 25... Rc8 {[%clk 0:01:43.7]} 26. Bxa5
{[%clk 0:01:59.7]} 26... b3 {[%clk 0:01:45.3]} 27. Bc3 {[%clk 0:01:54.4]} 27...
Nb6 {[%clk 0:01:41.1]} 28. Qb5 {[%clk 0:01:53.2]} 28... Nc4 {[%clk 0:01:41.5]}
29. Qb7 {[%clk 0:01:43]} 29... Nd6 {[%clk 0:01:30.6]} 30. Qd7 {[%clk 0:01:27.7]}
30... Ra8 {[%clk 0:01:15.9]} 31. h4 {[%clk 0:01:10.2]} 31... h5 {[%clk
0:01:13.4]} 32. Ne7+ {[%clk 0:01:06.5]} 32... Kf8 {[%clk 0:01:09.1]} 33. Nxd5
{[%clk 0:01:03.9]} 33... exd5 {[%clk 0:01:08.5]} 34. Bxd5 {[%clk 0:01:04.6]}
34... Ra2 {[%clk 0:00:40.1]} 35. Bxb3 {[%clk 0:00:53.8]} 35... Rxf2 {[%clk
0:00:39.4]} 36. Bd4 {[%clk 0:00:52]} 1-0